fUSD/lending_fUSD_20251228
["ID","MTS","AMOUNT","RATE_DAILY","PERIOD"]
[399966269,1766951445094,-150.0,0.00016632,2]
[399966270,1766951445104,-150.0,0.00016647,2]
[399966272,1766951445116,-150.0,0.00016647,2]
[399966273,1766951445126,-1595.8,0.00016649,2]
[399966275,1766951445136,-925.0,0.00016658,2]
[399966277,1766951445145,-971.1946189,0.0001666,2]
[399966279,1766951445155,-150.0,0.00016661,2]
[399966281,1766951445165,-150.0,0.00016663,2]
[399966283,1766951445174,-150.0,0.00016668,2]
[399966285,1766951445184,-150.0,0.00016673,2]
[399966287,1766951445194,-1595.8,0.00016693,2]
[399966289,1766951445203,-150.0,0.00016695,2]
[399966291,1766951445213,-150.0,0.00016697,2]
[399966293,1766951445223,-1000.0,0.000167,2]
[399966295,1766951445232,-150.0,0.00016703,2]
[399966297,1766951445242,-150.0,0.00016703,2]
[399966300,1766951445252,-150.0,0.00016715,2]
[399966302,1766951445261,-150.0,0.00016718,2]
[399966304,1766951445271,-150.0,0.00016733,2]
[399966305,1766951445280,-1595.8,0.00016737,2]
[399966306,1766951445290,-150.0,0.00016744,2]
[399966307,1766951445299,-150.0,0.00016744,2]
[399966308,1766951445309,-150.0,0.00016744,2]
[399966309,1766951445318,-150.0,0.00016744,2]
[399966310,1766951445328,-150.0,0.00016763,2]
[399966311,1766951445338,-150.0,0.00016769,2]
[399966312,1766951445347,-150.0,0.00016774,2]
[399966313,1766951445357,-150.0,0.00016774,2]
[399966314,1766951445367,-1595.8,0.0001678,2]
[399966315,1766951445376,-150.0,0.00016782,2]
[399966316,1766951445385,-925.0,0.00016783,2]
[399966317,1766951445395,-150.0,0.00016792,2]
[399966318,1766951445405,-150.0,0.00016798,2]
[399966319,1766951445415,-150.0,0.00016806,2]
[399966320,1766951445424,-150.0,0.00016807,2]
[399966321,1766951445433,-1595.8,0.00016824,2]
[399966322,1766951445443,-150.0,0.00016825,2]
[399966323,1766951445452,-150.0,0.00016841,2]
[399966324,1766951445462,-150.0,0.00016842,2]
[399966325,1766951445471,-150.0,0.00016845,2]
[399966326,1766951445481,-150.0,0.0001685,2]
[399966327,1766951445490,-150.0,0.00016852,2]
[399966328,1766951445499,-1595.8,0.00016868,2]
[399966329,1766951445509,-1040.0,0.00016875,2]
[399966331,1766951445520,-150.0,0.00016878,2]
[399966332,1766951445530,-150.0,0.0001688,2]
[399966333,1766951445540,-150.0,0.00016889,2]
[399966334,1766951445549,-150.0,0.00016897,2]
[399966335,1766951445558,-1000.0,0.000169,2]
[399966336,1766951445568,-11875.63213071,0.000169,2]
[399966337,1766951445578,-345.9768856,0.000169,2]
[399966338,1766951445588,-170.66587298,0.000169,2]
[399966339,1766951445598,-352.50332532,0.000169,2]
[399966340,1766951445608,-4048.0,0.000169,2]
[399966341,1766951445618,-150.0,0.00016905,2]
[399966342,1766951445628,-1595.8,0.00016912,2]
[399966343,1766951445639,-150.0,0.00016914,2]
[399966344,1766951445648,-150.0,0.00016916,2]
[399966345,1766951445658,-150.0,0.00016918,2]
[399966346,1766951445668,-1000.0,0.00016923,2]
[399966347,1766951445677,-1000.0,0.00016923,2]
[399966348,1766951445687,-1000.0,0.00016923,2]
[399966349,1766951445696,-1000.0,0.00016923,2]
[399966350,1766951445706,-350.51,0.00016923,2]
[399966351,1766951445716,-1000.0,0.00016923,2]
[399966352,1766951445725,-1000.0,0.00016923,2]
[399966353,1766951445735,-1000.0,0.00016923,2]
[399966354,1766951445744,-768.217,0.00016923,2]
[399966355,1766951445754,-150.0,0.00016938,2]
[399966356,1766951445763,-150.0,0.00016942,2]
[399966357,1766951445773,-150.0,0.0001695,2]
[399966358,1766951445783,-1595.8,0.00016956,2]
[399966359,1766951445792,-1040.0,0.00016957,2]
[399966360,1766951445802,-150.0,0.00016973,2]
[399966361,1766951445811,-150.0,0.00016973,2]
[399966362,1766951445820,-500.0,0.00016986,2]
[399966363,1766951445831,-291.19227716,0.00016986,2]
[399966364,1766951445840,-193.20504799,0.00016986,2]
[399966365,1766951445850,-261.52919059,0.00016986,2]
[399966366,1766951445860,-298.68946488,0.00016986,2]
[399966367,1766951445869,-159.10391865,0.00016986,2]
[399966368,1766951445879,-191.18737209,0.00016986,2]
[399966369,1766951445889,-157.03567619,0.00016986,2]
[399966370,1766951445898,-204.47837641,0.00016986,2]
[399966371,1766951445907,-257.38593741,0.00016986,2]
[399966372,1766951445918,-288.29142727,0.00016986,2]
[399966373,1766951445927,-156.10987043,0.00016986,2]
[399966374,1766951445936,-172.24524013,0.00016986,2]
[399966375,1766951445945,-266.31997745,0.00016986,2]
[399966376,1766951445955,-273.23141721,0.00016986,2]
[399966377,1766951445964,-925.0,0.00016993,2]
[399966378,1766951445973,-151.0,0.00016997,2]
[399966379,1766951445983,-1074.35738196,0.00016999,5]
[399966380,1766951445992,-1074.35738195,0.00016999,5]
[399966381,1766951446001,-300.0,0.00016999,2]
[399966382,1766951446011,-300.0,0.00016999,2]
[399966383,1766951446021,-300.0,0.00016999,2]
[399966384,1766951446031,-666.0,0.00016999,2]
[399966385,1766951446043,-1461246.82223501,0.00017,2]
[399966386,1766951446361,-151.0,0.00015416,2]
[399966387,1766951446372,-151.0,0.00015416,2]
[399966388,1766951446382,-198.59058861,0.000169,2]
[399966389,1766951446393,-123.4430088,0.000169,2]
[399966390,1766951446402,-405.16201081,0.000169,2]
[399966391,1766951446412,-346.28278439,0.000169,2]
[399966392,1766951446427,-180.33999974,0.000169,2]
[399966393,1766951446436,-249249.06085869,0.00017,2]
[399966394,1766951446449,-418.36070652,0.00017,2]
[399966400,1766951859777,589.94853093,0.00030136,120]
[399966402,1766952097324,227.94,0.00021918,30]
[399966403,1766952428076,15592.039377,7.945e-05,2]
[399966410,1766952607975,6752.707599,7.945e-05,2]
[399966415,1766952631767,-329.1245,0.00013613,2]
[399966416,1766952631777,-195.0,0.00013702,2]
[399966417,1766952631787,-165.1108,0.0001379,2]
[399966418,1766952631796,-1200.0,0.00013887,2]
[399966419,1766952631806,-300.0,0.00013887,2]
[399966420,1766952631816,-1200.0,0.00013887,2]
[399966421,1766952631826,-300.0,0.00013887,2]
[399966422,1766952631835,-300.0,0.00013888,2]
[399966423,1766952631845,-150.0,0.00013888,2]
[399966424,1766952631855,-300.0,0.00013888,2]
[399966425,1766952631865,-500.0,0.00013889,2]
[399966426,1766952631875,-500.0,0.00013889,2]
[399966427,1766952631885,-500.0,0.00013889,2]
[399966428,1766952631894,-500.0,0.00013889,2]
[399966429,1766952631903,-500.0,0.00013889,2]
[399966430,1766952631912,-500.0,0.00013889,2]
[399966431,1766952631921,-500.0,0.00013889,2]
[399966432,1766952631931,-500.0,0.00013889,2]
[399966433,1766952631940,-500.0,0.00013889,2]
[399966434,1766952631950,-500.0,0.00013889,2]
[399966435,1766952631959,-500.0,0.00013889,2]
[399966436,1766952631968,-1381.63,0.00013889,2]
[399966437,1766952631977,-1381.63,0.00014163,2]
[399966438,1766952631987,-999.0,0.00014201,3]
[399966439,1766952631996,-200.0,0.00014215,2]
[399966440,1766952632005,-427.55498217,0.00014399,2]
[399966441,1766952632015,-715.37431108,0.00014399,2]
[399966442,1766952632028,-177.16136203,0.00014399,2]
[399966443,1766952632038,-6719.07706183,0.00014399,2]
[399966444,1766952632047,-1381.63,0.00014437,2]
[399966445,1766952632057,-151.0,0.00014437,2]
[399966446,1766952632066,-40590.32816203,0.0001444,2]
[399966447,1766952632078,-43498.67114097,0.0001444,2]
[399966448,1766952632089,-1254.41808677,0.0001444,2]
[399966449,1766952632102,-1996.856654,0.0001444,2]
[399966452,1766952632116,-638.67352101,0.0001444,2]
[399966454,1766952632127,-3753.07156661,0.0001444,2]
[399966457,1766952632141,-7384.86883864,0.0001444,2]
[399966459,1766952632152,-1487.95536,0.0001444,2]
[399966461,1766952632162,-4820.28187,0.0001444,2]
[399966463,1766952632174,-510.0,0.0001444,2]
[399966465,1766952632185,-594.49,0.0001444,2]
[399966470,1766952632224,-11034.53221174,0.0001444,2]
[399966471,1766952632236,-805.848,0.0001444,2]
[399966472,1766952632247,-10757.83684707,0.0001444,2]
[399966473,1766952632258,-292.8999,0.0001444,2]
[399966474,1766952632269,-2083.5064752,0.0001444,2]
[399966475,1766952632289,-3372.79841062,0.0001444,2]
[399966480,1766952637825,-426.78089189,0.00014439,2]
[399966481,1766952637834,-107.80464497,0.00014439,2]
[399966482,1766952637900,-58.52125172,0.00014439,2]
[399966483,1766952637910,-200.60232859,0.00014439,2]
[399966484,1766952637919,-492.45141969,0.0001444,2]
[399966485,1766952637931,-1496.048167,0.0001444,2]
[399966486,1766952637941,-8612.47309849,0.0001444,2]
[399966487,1766952637952,-1611.51836,0.0001444,2]
[399966488,1766952637964,-748.26893567,0.0001444,2]
[399966489,1766952637975,-1049.16699306,0.0001444,2]
[399966490,1766952637987,-2947.80744003,0.0001444,2]
[399966491,1766952637998,-1021.13223865,0.0001444,2]
[399966492,1766952638008,-1888.38,0.0001444,2]
[399966500,1766952640152,-680.85232388,0.0001444,2]
[399966501,1766952640164,-1671.59138557,0.0001444,2]
[399966503,1766952640208,-842903.2725933,0.0001444,2]
[399966505,1766952640218,-500.0,0.00014499,2]
[399966507,1766952640227,-551.85860917,0.00014499,2]
[399966509,1766952640237,-805.43598357,0.0001454,2]
[399966511,1766952640246,-500.0,0.00014573,2]
[399966513,1766952640256,-500.51324187,0.00014573,2]
[399966515,1766952640265,-500.0,0.00014573,2]
[399966517,1766952640276,-174.92808548,0.00014573,2]
[399966519,1766952640286,-500.0,0.00014573,2]
[399966521,1766952640295,-500.0,0.00014573,2]
[399966523,1766952640305,-500.0,0.00014573,2]
[399966525,1766952640315,-500.0,0.00014573,2]
[399966527,1766952640325,-500.0,0.00014573,2]
[399966529,1766952640334,-500.0,0.00014573,2]
[399966531,1766952640343,-536.24942027,0.00014573,2]
[399966533,1766952640354,-500.0,0.00014573,2]
[399966535,1766952640363,-500.0,0.00014573,2]
[399966536,1766952640372,-500.0,0.00014573,2]
[399966537,1766952640382,-538.18007522,0.00014573,2]
[399966538,1766952640396,-500.14010989,0.00014573,2]
[399966539,1766952640405,-500.0,0.00014573,2]
[399966540,1766952640414,-157.13520198,0.00014573,2]
[399966541,1766952640424,-500.0,0.00014573,2]
[399966542,1766952640436,-500.5153804,0.00014573,2]
[399966543,1766952640445,-163.02384966,0.00014573,2]
[399966544,1766952640455,-162.19608931,0.00014573,2]
[399966545,1766952640464,-168.76953006,0.00014573,2]
[399966546,1766952640473,-500.0,0.00014573,2]
[399966547,1766952640483,-500.0,0.00014573,2]
[399966548,1766952640492,-500.0,0.00014573,2]
[399966549,1766952640501,-305.00383529,0.00014573,2]
[399966550,1766952640511,-484.98892147,0.00014573,2]
[399966551,1766952640520,-500.0,0.00014573,2]
[399966552,1766952640529,-500.0,0.00014573,2]
[399966553,1766952640539,-500.0,0.00014573,2]
[399966554,1766952640549,-500.0,0.00014573,2]
[399966555,1766952640558,-500.0,0.00014573,2]
[399966557,1766952640567,-500.0,0.00014573,2]
[399966559,1766952640576,-500.0,0.00014573,2]
[399966560,1766952640586,-500.0,0.00014573,2]
[399966561,1766952640596,-500.0,0.00014573,2]
[399966562,1766952640611,-437.57390351,0.00014573,2]
[399966563,1766952640621,-500.0,0.00014573,2]
[399966564,1766952640630,-500.0,0.00014573,2]
[399966565,1766952640643,-201.23401647,0.00014667,2]
[399966566,1766952640654,-500.0,0.00014667,2]
[399966567,1766952640663,-200.0,0.00014667,2]
[399966568,1766952640673,-200.0,0.00014667,2]
[399966569,1766952640682,-151.0,0.00014667,2]
[399966570,1766952640691,-151.0,0.00014667,2]
[399966571,1766952640700,-151.0,0.00014667,2]
[399966572,1766952640709,-151.0,0.00014667,2]
[399966573,1766952640718,-151.0,0.00014667,2]
[399966574,1766952640727,-151.0,0.00014667,2]
[399966575,1766952640736,-151.0,0.00014667,2]
[399966576,1766952640746,-151.0,0.00014667,2]
[399966577,1766952640757,-151.0,0.00014667,2]
[399966578,1766952640766,-151.0,0.00014667,2]
[399966579,1766952640776,-151.0,0.00014667,2]
[399966580,1766952640787,-151.0,0.00014667,2]
[399966581,1766952640796,-153.70166196,0.00014667,2]
[399966582,1766952640805,-151.0,0.00014667,2]
[399966583,1766952640814,-151.0,0.00014667,2]
[399966584,1766952640823,-151.0,0.00014667,2]
[399966585,1766952640834,-151.0,0.00014667,2]
[399966586,1766952640843,-151.0,0.00014667,2]
[399966587,1766952640853,-151.0,0.00014667,2]
[399966588,1766952640862,-151.0,0.00014667,2]
[399966589,1766952640872,-151.0,0.00014667,2]
[399966590,1766952640882,-63521.09,0.00014675,2]
[399966591,1766952640892,-6719.07706178,0.00014677,2]
[399966592,1766952640901,-1381.63,0.00014711,2]
[399966593,1766952640910,-427.55498217,0.00014756,2]
[399966594,1766952640919,-500.0,0.00014847,2]
[399966595,1766952640929,-195.0,0.00014974,2]
[399966596,1766952640938,-250.0,0.00014974,2]
[399966597,1766952640947,-195.0,0.00014974,2]
[399966598,1766952640957,-600.0,0.00014974,2]
[399966599,1766952640966,-600.0,0.00014974,2]
[399966600,1766952640975,-600.0,0.00014974,2]
[399966601,1766952640984,-163.03184917,0.00014974,2]
[399966602,1766952640993,-300.0,0.00014974,2]
[399966603,1766952641003,-250.0,0.00014974,2]
[399966604,1766952641012,-195.0,0.00014974,2]
[399966605,1766952641024,-300.0,0.00014974,2]
[399966606,1766952641033,-250.0,0.00014974,2]
[399966607,1766952641042,-195.0,0.00014974,2]
[399966608,1766952641052,-1381.63,0.00014985,2]
[399966609,1766952641062,-255.0,0.00015013,2]
[399966610,1766952641072,-151.0,0.00015015,2]
[399966611,1766952641083,-11545.2244019,0.00015018,2]
[399966612,1766952641093,-427.55498217,0.00015114,2]
[399966613,1766952641102,-1099.98058356,0.00015121,2]
[399966614,1766952641112,-1000.0,0.00015121,2]
[399966615,1766952641122,-325.46719088,0.00015121,2]
[399966616,1766952641132,-1000.0,0.00015121,2]
[399966617,1766952641141,-500.81919324,0.00015121,2]
[399966618,1766952641150,-500.0,0.00015121,2]
[399966619,1766952641159,-632.38992075,0.00015121,2]
[399966620,1766952641168,-500.0,0.00015121,2]
[399966621,1766952641178,-1000.0,0.00015121,2]
[399966622,1766952641188,-1000.0,0.00015121,2]
[399966623,1766952641199,-1000.0,0.00015121,2]
[399966624,1766952641209,-500.0,0.00015121,2]
[399966625,1766952641219,-1000.0,0.00015121,2]
[399966626,1766952641229,-1007.4808143,0.00015121,2]
[399966627,1766952641238,-1000.0,0.00015121,2]
[399966628,1766952641248,-1133.29597512,0.00015121,2]
[399966629,1766952641258,-1000.0,0.00015121,2]
[399966630,1766952641268,-1000.0,0.00015121,2]
[399966631,1766952641280,-367.26456673,0.00015121,2]
[399966632,1766952641289,-1000.0,0.00015121,2]
[399966633,1766952641298,-1000.0,0.00015121,2]
[399966634,1766952641308,-645.49615289,0.00015121,2]
[399966635,1766952641317,-1000.0,0.00015121,2]
[399966636,1766952641326,-1000.0,0.00015121,2]
[399966637,1766952641335,-1000.0,0.00015121,2]
[399966638,1766952641345,-500.0,0.00015121,2]
[399966639,1766952641354,-504.00666552,0.00015215,2]
[399966640,1766952641363,-200.0,0.00015215,2]
[399966641,1766952641373,-375.0,0.00015216,2]
[399966642,1766952641382,-420.0,0.00015216,2]
[399966643,1766952641391,-420.0,0.00015217,2]
[399966644,1766952641400,-11545.22440184,0.00015227,2]
[399966645,1766952641409,-1381.63,0.00015259,2]
[399966646,1766952641419,-1680.0,0.00015276,2]
[399966647,1766952641428,-150.0,0.00015288,2]
[399966648,1766952641438,-150.0,0.00015288,2]
[399966649,1766952641447,-150.0,0.00015288,2]
[399966650,1766952641457,-150.0,0.00015288,2]
[399966651,1766952641466,-150.0,0.00015288,2]
[399966652,1766952641475,-157.03567619,0.00015288,2]
[399966653,1766952641485,-150.0,0.00015288,2]
[399966654,1766952641494,-150.0,0.00015288,2]
[399966655,1766952641503,-150.0,0.00015288,2]
[399966656,1766952641513,-150.0,0.00015288,2]
[399966657,1766952641523,-156.10987043,0.00015288,2]
[399966658,1766952641533,-150.0,0.00015288,2]
[399966659,1766952641542,-150.0,0.00015288,2]
[399966660,1766952641553,-150.0,0.00015342,2]
[399966661,1766952641563,-151.0,0.00015363,2]
[399966662,1766952641573,-150.0,0.00015369,2]
[399966663,1766952641583,-151.0,0.00015373,2]
[399966664,1766952641593,-151.0,0.00015373,2]
[399966665,1766952641602,-151.0,0.00015373,2]
[399966666,1766952641612,-151.0,0.00015376,2]
[399966667,1766952641622,-151.0,0.00015376,2]
[399966668,1766952641632,-151.0,0.00015376,2]
[399966669,1766952641647,-151.0,0.00015376,2]
[399966670,1766952641657,-150.0,0.00015394,2]
[399966671,1766952641667,-500.0,0.00015395,2]
[399966672,1766952641677,-150.0,0.00015397,2]
[399966673,1766952641687,-150.0,0.00015401,2]
[399966674,1766952641696,-359.87,0.00015423,3]
[399966675,1766952641706,-150.0,0.00015429,2]
[399966676,1766952641716,-11545.22440184,0.00015436,2]
[399966677,1766952641725,-150.0,0.00015442,2]
[399966678,1766952641735,-150.0,0.00015449,2]
[399966679,1766952641744,-150.0,0.00015452,2]
[399966680,1766952641753,-427.55498217,0.00015471,2]
[399966681,1766952641763,-10027.13268045,0.0001548,2]
[399966682,1766952641773,-150.0,0.000155,2]
[399966683,1766952641783,-150.0,0.00015507,2]
[399966684,1766952641793,-150.0,0.00015514,2]
[399966685,1766952641802,-150.0,0.0001553,2]
[399966686,1766952641815,-1381.63,0.00015533,2]
[399966687,1766952641826,-150.0,0.00015562,2]
[399966688,1766952641836,-2500.0,0.00015568,2]
[399966689,1766952641849,-150.0,0.00015571,2]
[399966690,1766952641861,-150.0,0.00015571,2]
[399966691,1766952641873,-150.0,0.00015571,2]
[399966692,1766952641884,-290.25,0.00015594,2]
[399966693,1766952641897,-150.0,0.00015597,2]
[399966694,1766952641908,-150.0,0.00015606,2]
[399966695,1766952641919,-150.0,0.00015611,2]
[399966696,1766952641929,-150.0,0.00015616,2]
[399966697,1766952641939,-150.0,0.00015627,2]
[399966698,1766952641948,-150.0,0.00015627,2]
[399966699,1766952641958,-11545.22440184,0.00015645,2]
[399966700,1766952641968,-245.07202076,0.00015664,2]
[399966701,1766952641978,-169.53966379,0.00015668,2]
[399966702,1766952641989,-501.70391837,0.00015668,2]
[399966703,1766952642000,-941.4218678,0.00015668,2]
[399966704,1766952642011,-1500.0,0.00015668,2]
[399966705,1766952642023,-1500.0,0.00015668,2]
[399966706,1766952642034,-1500.0,0.00015668,2]
[399966707,1766952642045,-1074.4149174,0.00015668,2]
[399966708,1766952642056,-1500.0,0.00015668,2]
[399966709,1766952642067,-1500.0,0.00015668,2]
[399966710,1766952642079,-1500.0,0.00015668,2]
[399966711,1766952642091,-1000.0,0.00015668,2]
[399966712,1766952642103,-1500.0,0.00015668,2]
[399966713,1766952642114,-1500.0,0.00015668,2]
[399966714,1766952642126,-634.28770415,0.00015668,2]
[399966715,1766952642138,-500.0,0.00015668,2]
[399966716,1766952642148,-150.0,0.00015671,2]
[399966717,1766952642158,-150.0,0.00015692,2]
[399966718,1766952642168,-150.0,0.00015712,2]
[399966719,1766952642178,-150.0,0.00015712,2]
[399966720,1766952642188,-150.0,0.00015726,2]
[399966721,1766952642199,-150.0,0.00015741,2]
[399966722,1766952642210,-150.0,0.00015751,2]
[399966723,1766952642220,-200.0,0.00015763,2]
[399966724,1766952642230,-150.0,0.00015773,2]
[399966725,1766952642239,-150.0,0.00015781,2]
[399966726,1766952642248,-1381.63,0.00015807,2]
[399966727,1766952642259,-150.0,0.00015818,2]
[399966728,1766952642269,-427.55498217,0.00015828,2]
[399966729,1766952642279,-150.0,0.00015836,2]
[399966730,1766952642290,-150.0,0.00015854,2]
[399966731,1766952642300,-150.0,0.00015854,2]
[399966732,1766952642311,-150.0,0.00015854,2]
[399966733,1766952642321,-150.0,0.00015854,2]
[399966734,1766952642331,-150.0,0.00015854,2]
[399966735,1766952642342,-150.0,0.00015854,2]
[399966736,1766952642352,-11545.22440184,0.00015854,2]
[399966737,1766952642363,-150.0,0.0001589,2]
[399966738,1766952642374,-150.0,0.00015905,2]
[399966739,1766952642385,-500.0,0.00015921,2]
[399966740,1766952642396,-150.0,0.00015925,2]
[399966741,1766952642406,-150.0,0.00015935,2]
[399966742,1766952642417,-500.0,0.00015942,2]
[399966743,1766952642427,-150.0,0.00015945,2]
[399966744,1766952642437,-150.0,0.00015967,2]
[399966745,1766952642448,-150.0,0.00015967,2]
[399966746,1766952642458,-500.0,0.00015973,2]
[399966747,1766952642470,-502.71159199,0.00015973,2]
[399966748,1766952642480,-500.0,0.00015973,2]
[399966749,1766952642491,-511.82107275,0.00015973,2]
[399966750,1766952642502,-413.88399981,0.00015973,2]
[399966751,1766952642513,-500.0,0.00015973,2]
[399966752,1766952642523,-500.0,0.00015973,2]
[399966753,1766952642534,-163.47849716,0.00015973,2]
[399966754,1766952642544,-500.0,0.00015973,2]
[399966755,1766952642554,-500.0,0.00015973,2]
[399966756,1766952642567,-500.0,0.00015973,2]
[399966757,1766952642579,-150.0,0.00015995,2]
[399966758,1766952642591,-150.0,0.00016,2]
[399966759,1766952642601,-150.0,0.00016016,2]
[399966760,1766952642611,-150.0,0.00016031,2]
[399966761,1766952642622,-150.0,0.00016055,2]
[399966762,1766952642633,-150.0,0.0001606,2]
[399966763,1766952642645,-11545.22440184,0.00016064,2]
[399966764,1766952642656,-397.0,0.00016074,2]
[399966765,1766952642666,-150.0,0.0001608,2]
[399966766,1766952642676,-1381.63,0.00016081,2]
[399966767,1766952642686,-2431.0,0.00016095,2]
[399966768,1766952642697,-4810.0,0.00016095,2]
[399966769,1766952642707,-564.0,0.00016095,2]
[399966770,1766952642718,-3699.345,0.00016095,2]
[399966771,1766952642727,-150.0,0.00016097,2]
[399966773,1766952642738,-150.0,0.0001611,2]
[399966775,1766952642748,-500.0,0.00016136,2]
[399966776,1766952642758,-273.77153773,0.00016136,2]
[399966777,1766952642769,-500.0,0.00016136,2]
[399966778,1766952642779,-500.0,0.00016136,2]
[399966779,1766952642789,-502.69145487,0.00016136,2]
[399966780,1766952642800,-500.0,0.00016136,2]
[399966781,1766952642811,-509.65734169,0.00016136,2]
[399966782,1766952642823,-500.0,0.00016136,2]
[399966783,1766952642833,-500.0,0.00016136,2]
[399966784,1766952642844,-500.0,0.00016136,2]
[399966785,1766952642859,-500.0,0.00016136,2]
[399966786,1766952642875,-500.0,0.00016136,2]
[399966787,1766952642886,-562.55426662,0.00016136,2]
[399966788,1766952642897,-500.0,0.00016136,2]
[399966789,1766952642907,-150.0,0.00016137,2]
[399966790,1766952642918,-150.0,0.00016137,2]
[399966791,1766952642928,-150.0,0.00016137,2]
[399966792,1766952642939,-150.0,0.00016137,2]
[399966793,1766952642949,-5102.30663022,0.00016137,2]
[399966794,1766952642959,-3874.97124849,0.00016137,2]
[399966795,1766952642968,-280.44326248,0.00016137,2]
[399966796,1766952642978,-250.0,0.00016149,2]
[399966797,1766952642987,-500.0,0.00016149,2]
[399966798,1766952642997,-500.0,0.00016149,2]
[399966799,1766952643008,-500.0,0.00016149,2]
[399966800,1766952643022,-500.0,0.00016149,2]
[399966801,1766952643032,-500.0,0.00016149,2]
[399966802,1766952643041,-553.64373807,0.00016149,2]
[399966803,1766952643052,-153.47713146,0.00016149,2]
[399966804,1766952643063,-642.94,0.00016149,2]
[399966805,1766952643076,-201.93286099,0.00016149,2]
[399966806,1766952643087,-200.0,0.00016149,2]
[399966807,1766952643099,-207.4,0.00016149,2]
[399966808,1766952643109,-157.57578229,0.00016149,2]
[399966809,1766952643119,-334.5472959,0.00016149,2]
[399966810,1766952643128,-150.0,0.00016164,2]
[399966811,1766952643138,-500.0,0.00016164,2]
[399966812,1766952643148,-500.0,0.00016164,2]
[399966813,1766952643157,-152.95414215,0.00016164,2]
[399966814,1766952643166,-500.0,0.00016164,2]
[399966815,1766952643176,-150.0,0.00016164,2]
[399966816,1766952643186,-150.0,0.00016164,2]
[399966817,1766952643197,-150.0,0.00016164,2]
[399966818,1766952643207,-237.83643607,0.00016164,2]
[399966819,1766952643218,-500.0,0.00016164,2]
[399966820,1766952643228,-500.0,0.00016164,2]
[399966821,1766952643239,-150.0,0.00016164,2]
[399966822,1766952643250,-150.0,0.00016164,2]
[399966823,1766952643259,-150.0,0.00016164,2]
[399966824,1766952643271,-244.86390051,0.00016164,2]
[399966825,1766952643282,-150.0,0.00016164,2]
[399966826,1766952643293,-200.0,0.00016164,2]
[399966827,1766952643304,-150.0,0.00016164,2]
[399966828,1766952643314,-397.0,0.00016173,2]
[399966829,1766952643323,-150.0,0.00016177,2]
[399966830,1766952643333,-427.55498217,0.00016185,2]
[399966831,1766952643343,-151.47551324,0.00016191,2]
[399966832,1766952643353,-500.0,0.00016191,2]
[399966833,1766952643364,-500.0,0.00016191,2]
[399966834,1766952643374,-500.0,0.00016191,2]
[399966835,1766952643384,-150.0,0.00016191,2]
[399966836,1766952643395,-150.0,0.00016191,2]
[399966837,1766952643405,-164.91531166,0.00016191,2]
[399966838,1766952643416,-500.0,0.00016191,2]
[399966839,1766952643426,-500.0,0.00016191,2]
[399966840,1766952643436,-150.0,0.00016191,2]
[399966841,1766952643446,-176.84626368,0.00016191,2]
[399966842,1766952643457,-200.0,0.00016191,2]
[399966843,1766952643467,-150.0,0.00016191,2]
[399966844,1766952643478,-150.0,0.00016194,2]
[399966845,1766952643488,-4645.0,0.00016205,2]
[399966846,1766952643498,-385.29024057,0.00016206,2]
[399966847,1766952643508,-150.0,0.00016214,2]